bitfinex-derivatives/quotes_SOLF0:USTF0_20240927
["timestamp","ask_amount","ask_price","bid_price","bid_amount"]
[1727467183794,15.22,157.77,157.66,15.22]
[1727467184482,15.22,157.77,157.69,3.1698]
[1727467184686,15.22,157.74,157.69,3.1698]
[1727467185384,15.22,157.74,157.7,3.1697]
[1727467185692,15.22,157.74,157.66,15.22]
[1727467185886,15.22,157.74,157.7,3.1696]
[1727467186590,18.3885,157.77,157.69,3.1699]
[1727467186894,1.2533,157.78,157.69,3.1699]
[1727467186895,16.4733,157.78,157.69,15.22]
[1727467187488,15.22,157.76,157.65,15.22]
[1727467187686,15.22,157.74,157.65,15.22]
[1727467188391,15.22,157.74,157.68,3.17]
[1727467188392,3.1695,157.72,157.68,3.17]
[1727467188594,15.22,157.74,157.65,15.22]
[1727467188796,3.1696,157.71,157.64,3.8916]
[1727467189192,15.22,157.72,157.64,3.8916]
[1727467189389,3.1698,157.7,157.66,3.1704]
[1727467189592,15.22,157.72,157.64,3.8916]
[1727467189791,3.1696,157.71,157.67,3.1703]
[1727467190487,3.1696,157.71,157.68,3.1701]
[1727467191087,1.3086,157.73,157.68,3.1701]
[1727467191391,15.22,157.74,157.65,15.22]
[1727467191695,3.1693,157.72,157.65,15.22]
[1727467192097,3.1696,157.71,157.65,15.22]
[1727467192597,15.22,157.72,157.64,3.8916]
[1727467192797,15.22,157.72,157.64,2.6115]
[1727467193198,3.1701,157.69,157.65,3.1706]
[1727467193594,3.1705,157.67,157.63,3.171]
[1727467194294,15.22,157.68,157.58,2.6584]
[1727467194495,15.22,157.66,157.58,2.6584]
[1727467194894,18.3907,157.66,157.61,3.1714]
[1727467195098,18.3907,157.66,157.58,2.6584]
[1727467195493,3.1704,157.67,157.58,2.6584]
[1727467195697,16.5163,157.71,157.62,15.22]
[1727467196293,15.22,157.73,157.66,15.22]
[1727467196593,19.2008,157.75,157.66,15.22]
[1727467196799,3.1695,157.72,157.66,15.22]
[1727467197192,3.1692,157.73,157.66,15.22]
[1727467197800,3.1692,157.73,157.61,3.10680918]
[1727467198101,3.1692,157.73,157.66,15.22]
[1727467198300,3.1693,157.72,157.68,3.1701]
[1727467198995,3.1696,157.71,157.68,3.1701]
[1727467199198,3.1696,157.71,157.67,3.1703]
[1727467200088,3.1696,157.71,157.61,3.1296487]
[1727467200089,15.22,157.71,157.61,15.22]
[1727467200296,15.22,157.69,157.6,15.22]
[1727467200495,3.1705,157.67,157.63,3.171]
[1727467201501,3.1705,157.67,157.6,15.22]
[1727467201800,3.1702,157.68,157.6,15.22]
[1727467202204,3.1702,157.68,157.64,3.1708]
[1727467202403,15.22,157.69,157.6,15.22]
[1727467202903,3.1701,157.69,157.57,3.9111]
[1727467203198,15.22,157.72,157.62,15.22]
[1727467203402,3.1699,157.7,157.66,3.1704]
[1727467203995,3.1699,157.7,157.67,3.1703]
[1727467205000,3.1699,157.69,157.67,3.1703]
[1727467205408,3.1699,157.69,157.66,3.1705]
[1727467205706,3.1698,157.7,157.63,2.6894]
[1727467206506,3.17,157.69,157.66,3.1704]
[1727467207007,3.17,157.69,157.63,2.6894]
[1727467207207,15.22,157.72,157.63,2.6894]
[1727467207401,15.22,157.73,157.64,15.22]
[1727467208008,3.1696,157.71,157.68,3.17]
[1727467208506,15.22,157.73,157.64,15.22]
[1727467208507,3.1694,157.72,157.64,15.22]
[1727467208908,3.1694,157.72,157.66,15.22]
[1727467209103,3.1694,157.72,157.69,3.1698]
[1727467209406,69.7881,157.79,157.7,15.22]
[1727467209709,15.22,157.8,157.7,15.22]
[1727467209922,1.3677,157.81,157.72,15.22]
[1727467210115,1.3677,157.81,157.75,3.1686]
[1727467210303,3.1683,157.78,157.72,15.22]
[1727467210611,15.22,157.8,157.72,3.1692]
[1727467211009,3.1687,157.76,157.72,3.1692]
[1727467211208,15.22,157.8,157.72,3.1692]
[1727467211406,3.1687,157.76,157.72,3.1692]
[1727467211811,15.22,157.8,157.74,3.1688]
[1727467213614,15.22,157.75,157.6,6.3432]
[1727467213821,15.22,157.73,157.64,1.3742]
[1727467214018,3.1695,157.72,157.64,1.3742]
[1727467214422,15.22,157.73,157.64,1.3742]
[1727467214721,15.22,157.73,157.67,3.1702]
[1727467214922,15.22,157.73,157.64,1.3742]
[1727467215231,3.1699,157.69,157.66,3.1705]
[1727467215419,15.22,157.71,157.63,2.6772]
[1727467216116,3.17,157.69,157.65,3.1707]
[1727467216320,1.2982,157.72,157.63,17.8972]
[1727467216726,16.5925,157.75,157.68,3.1701]
[1727467217117,3.1695,157.71,157.68,3.1701]
[1727467219623,3.1694,157.72,157.65,15.22]
[1727467220215,3.1694,157.72,157.69,3.1699]
[1727467221631,16.5925,157.75,157.65,15.22]
[1727467221929,1.3725,157.75,157.65,15.22]
[1727467222228,11.55554483,157.76,157.69,15.22]
[1727467222425,11.55554483,157.78,157.69,15.22]
[1727467222631,3.1684,157.77,157.74,3.1688]
[1727467222932,11.56142757,157.79,157.71,15.22]
[1727467223132,68.5,157.8,157.71,15.22]
[1727467223335,2.677,157.82,157.74,15.22]
[1727467223627,14.2420553,157.82,157.74,15.22]
[1727467223833,3.1679,157.79,157.76,3.1684]
[1727467226516,3.1678,157.8,157.76,3.1684]
[1727467226720,12.87078006,157.82,157.74,15.22]
[1727467226921,1.2985,157.82,157.74,15.22]
[1727467227318,1.2985,157.82,157.71,1.3424]
[1727467227319,15.22,157.8,157.72,15.22]
[1727467228221,3.1682,157.78,157.72,15.22]
[1727467228422,15.22,157.8,157.72,15.22]
[1727467228625,3.1682,157.78,157.74,3.1689]
[1727467228819,15.22,157.8,157.72,15.22]
[1727467229234,3.1685,157.77,157.73,3.169]
[1727467229728,1.3806,157.81,157.7,2.6165]
[1727467229729,15.22,157.78,157.7,2.6165]
[1727467229932,3.1687,157.76,157.71,3.1694]
[1727467230733,3.1687,157.76,157.72,3.1692]
[1727467231424,3.1687,157.75,157.71,3.1694]
[1727467231726,15.22,157.76,157.66,16.5588]
[1727467231927,3.1693,157.73,157.66,16.5588]
[1727467232238,3.1693,157.73,157.68,3.1701]
[1727467232432,3.1698,157.7,157.65,1.3718]
[1727467232730,15.22,157.74,157.65,1.3718]
[1727467233629,3.1697,157.71,157.67,3.1702]
[1727467235123,3.1694,157.72,157.68,3.17]
[1727467235835,83.7,157.8,157.68,15.22]
[1727467235836,15.22,157.79,157.68,15.22]
[1727467236135,11.56237583,157.78,157.68,15.22]
[1727467236530,3.1689,157.75,157.71,3.1694]
[1727467237346,11.56237583,157.78,157.7,15.22]
[1727467237834,3.1686,157.76,157.72,3.1692]
[1727467238038,11.56237583,157.78,157.72,15.22]
[1727467238329,3.1683,157.78,157.74,3.1688]
[1727467238537,1.279,157.79,157.74,3.1688]
[1727467238727,1.279,157.79,157.72,15.22]
[1727467238926,3.1685,157.77,157.73,3.1691]
[1727467239542,3.1686,157.76,157.72,18.3893]
[1727467239722,15.22,157.75,157.66,15.22]
[1727467240532,15.22,157.73,157.65,1.3718]
[1727467241131,3.1697,157.71,157.67,3.1702]
[1727467241525,1.279,157.79,157.69,15.22]
[1727467242133,12.84218205,157.79,157.69,15.22]
[1727467242323,3.1684,157.77,157.7,24.35]
[1727467242523,3.1684,157.77,157.71,2.5794]
[1727467242932,3.1682,157.78,157.71,2.5794]
[1727467243226,11.56376702,157.82,157.71,2.5794]
[1727467243424,3.1684,157.77,157.71,3.8349]
[1727467244234,11.56376702,157.82,157.73,3.169]
[1727467244539,11.56376702,157.82,157.71,3.8349]
[1727467245249,11.56376702,157.82,157.73,3.1691]
[1727467245931,3.1685,157.77,157.73,3.1691]
[1727467247233,3.1682,157.78,157.74,3.1689]
[1727467247440,11.56376702,157.82,157.71,3.8349]
[1727467247944,3.1681,157.79,157.75,3.1686]
[1727467248144,3.1681,157.79,157.71,3.8349]
[1727467248735,11.56376702,157.82,157.72,24.35]
[1727467249040,5.86808547,157.83,157.72,24.35]
[1727467249236,2.6731,157.83,157.72,24.35]
[1727467249736,5.86269657,157.83,157.75,3.1686]
[1727467249937,2.6731,157.83,157.75,3.1686]
[1727467250133,3.1682,157.78,157.75,3.1686]
[1727467251143,3.1684,157.77,157.72,24.35]
[1727467252142,3.1684,157.77,157.73,3.1691]
[1727467255441,3.1688,157.75,157.72,3.1693]
[1727467255641,3.1688,157.75,157.71,3.8349]
[1727467255941,3.1688,157.75,157.71,7.0042]
[1727467257045,3.1683,157.78,157.72,24.35]
[1727467257345,11.56376702,157.81,157.72,24.35]
[1727467257543,11.56376702,157.82,157.73,3.1691]
[1727467257751,3.1685,157.77,157.73,3.1691]
[1727467258244,3.168,157.79,157.75,3.1687]
[1727467258443,5.77362117,157.83,157.72,24.35]
[1727467259045,2.6731,157.83,157.72,24.35]
[1727467259442,2.6731,157.83,157.73,24.35]
[1727467259842,3.1677,157.8,157.75,3.1687]
[1727467260043,2.6731,157.83,157.73,24.35]
[1727467260246,1.3161,157.83,157.73,24.35]
[1727467260851,1.3161,157.83,157.71,3.8349]
[1727467260852,25.6661,157.83,157.74,3.1689]
[1727467261253,25.6661,157.83,157.71,3.8349]
[1727467261548,3.1681,157.79,157.71,3.8349]
[1727467262153,3.1692,157.73,157.69,3.1698]
[1727467262540,1.2796,157.77,157.66,24.35]
[1727467262851,24.35,157.75,157.65,1.3054]
[1727467264053,24.35,157.75,157.67,3.1703]
[1727467264054,3.1695,157.72,157.67,3.1703]
[1727467264450,5.60175115,157.76,157.65,1.3054]
[1727467264451,2.5084,157.76,157.65,1.3054]
[1727467264648,3.1691,157.74,157.66,24.35]
[1727467265051,3.1688,157.75,157.71,3.1695]
[1727467265250,1.2554,157.76,157.66,24.35]
[1727467265843,3.1687,157.76,157.69,24.35]
[1727467266157,11.53145696,157.8,157.69,24.35]
[1727467266540,3.1687,157.76,157.71,3.1695]
[1727467267547,3.1687,157.76,157.72,3.1693]
[1727467268052,3.1687,157.76,157.69,24.35]
[1727467268053,3.1685,157.77,157.69,24.35]
[1727467268259,11.53145696,157.8,157.71,24.35]
[1727467268759,3.1681,157.79,157.71,25.6756]
[1727467269053,11.53145696,157.8,157.74,24.35]
[1727467269258,11.53145696,157.8,157.77,3.1682]
[1727467269449,11.53145696,157.8,157.74,24.35]
[1727467270156,11.53145696,157.8,157.77,3.1682]
[1727467271049,11.53145696,157.8,157.76,24.35]
[1727467271550,11.53145696,157.8,157.79,3.1679]
[1727467272654,24.35,157.99,157.79,48.7]
[1727467272856,2.6212,157.95,157.84,24.35]
[1727467273155,3.1651,157.93,157.86,24.35]
[1727467273364,2.6212,157.95,157.86,24.35]
[1727467274860,2.6212,157.95,157.89,3.1659]
[1727467274861,3.165,157.94,157.89,3.1659]
[1727467279464,2.6212,157.95,157.88,3.166]
[1727467279764,2.6212,157.95,157.86,24.35]
[1727467280063,3.1653,157.93,157.86,24.35]
[1727467280560,3.1653,157.93,157.88,3.1661]
[1727467281557,3.1653,157.93,157.89,3.1658]
[1727467282163,3.165,157.94,157.86,24.35]
[1727467282780,3.165,157.94,157.89,3.1658]
[1727467283269,3.1653,157.93,157.89,3.1658]
[1727467284567,3.1653,157.92,157.88,3.1661]
[1727467284764,2.6212,157.95,157.84,24.35]
[1727467284967,2.6212,157.95,157.79,95.99282113]
[1727467284968,25.6267,157.94,157.79,95.99282113]
[1727467285272,3.1658,157.9,157.82,24.35]
[1727467285465,25.6267,157.94,157.82,24.35]
[1727467286667,3.1662,157.88,157.84,3.1668]
[1727467286868,3.1662,157.88,157.82,24.35]
[1727467287967,3.1662,157.88,157.84,3.1667]
[1727467288963,3.1663,157.87,157.84,3.1667]
[1727467289870,3.1663,157.87,157.83,3.1671]
[1727467290167,25.6267,157.94,157.83,3.1671]
[1727467290369,25.6267,157.94,157.79,92.79]
[1727467290370,24.35,157.91,157.82,3.1673]
[1727467290570,15.21,157.88,157.82,3.1673]
[1727467290967,3.1667,157.86,157.82,3.1673]
[1727467292373,3.1667,157.86,157.77,82.55238433]
[1727467292374,15.21,157.84,157.77,75.48227502]
[1727467292878,3.1675,157.81,157.77,78.65057502]
[1727467293260,3.1675,157.81,157.77,75.48227502]
[1727467293473,3.1674,157.82,157.78,3.1681]
[1727467294269,15.21,157.84,157.76,3.1685]
[1727467294974,3.1679,157.8,157.76,3.1685]
[1727467295974,3.1676,157.81,157.77,3.1683]
[1727467297477,3.1677,157.8,157.76,3.1685]
[1727467298663,15.21,157.84,157.75,18.3787]
[1727467298664,3.168,157.79,157.75,18.3787]
[1727467298869,3.168,157.79,157.75,3.1687]
[1727467300079,3.1681,157.78,157.75,3.1687]
[1727467300267,18.36928273,157.82,157.75,3.1687]
[1727467300671,15.21,157.82,157.75,3.1687]
[1727467300875,3.168,157.79,157.75,3.1687]
[1727467302476,18.45812159,157.82,157.74,3.1689]
[1727467302685,15.21,157.8,157.71,15.21]
[1727467302888,1.3582,157.81,157.69,16.5165]
[1727467302889,15.21,157.78,157.69,16.5165]
[1727467303072,16.555,157.8,157.71,15.21]
[1727467303578,3.1683,157.78,157.71,15.21]
[1727467303981,16.555,157.8,157.71,15.21]
[1727467304274,16.555,157.8,157.73,3.169]
[1727467304275,3.1683,157.77,157.73,3.169]
[1727467304783,3.1683,157.77,157.71,15.21]
[1727467304784,3.1682,157.78,157.74,3.1689]
[1727467305176,16.555,157.8,157.71,15.21]
[1727467305485,1.3635,157.79,157.71,15.21]
[1727467305686,15.21,157.78,157.69,16.5165]
[1727467306787,3.1686,157.76,157.72,3.1692]
[1727467307286,6.3305,157.93,157.75,15.21]
[1727467307584,15.21,157.9,157.8,15.21]
[1727467307883,3.1665,157.87,157.82,3.1672]
[1727467308489,3.1665,157.87,157.8,15.21]
[1727467308793,3.1665,157.87,157.82,15.21]
[1727467309882,3.1665,157.87,157.84,3.1669]
[1727467310280,3.1665,157.86,157.82,15.21]
[1727467310678,3.1668,157.85,157.82,15.21]
[1727467311284,3.1668,157.85,157.82,18.3772]
[1727467311486,1.3395,157.92,157.82,15.21]
[1727467311784,1.3395,157.92,157.85,15.21]
[1727467311985,3.166,157.89,157.85,15.21]
[1727467312792,3.1661,157.88,157.85,15.21]
[1727467313990,3.1661,157.88,157.85,18.3767]
[1727467314989,3.1661,157.88,157.85,3.1667]
[1727467317584,3.1664,157.87,157.84,3.1668]
[1727467318193,3.1664,157.87,157.85,3.1667]
[1727467318593,3.1666,157.86,157.81,15.21]
[1727467318794,15.21,157.89,157.81,15.21]
[1727467319094,15.21,157.85,157.76,2.6728]
[1727467319289,15.21,157.85,157.76,17.8828]
[1727467319794,3.1674,157.82,157.76,17.8828]
[1727467320993,3.1674,157.82,157.79,3.1678]
[1727467321194,15.21,157.85,157.79,3.1678]
[1727467321195,3.1672,157.83,157.79,3.1678]
[1727467321489,15.21,157.87,157.77,15.21]
[1727467321696,15.21,157.89,157.8,15.21]
[1727467321891,3.1668,157.85,157.8,15.21]
[1727467322294,3.1668,157.85,157.82,3.1673]
[1727467322495,3.1665,157.86,157.8,15.21]
[1727467322695,15.21,157.89,157.8,15.21]
[1727467323701,3.1669,157.85,157.82,3.1672]
[1727467324685,15.21,157.85,157.76,1.3851]
[1727467324888,1.378,157.84,157.76,1.3851]
[1727467325287,15.21,157.81,157.72,2.7248]
[1727467325693,3.1683,157.78,157.75,3.1687]
[1727467326487,15.21,157.78,157.69,15.21]
[1727467326897,3.1684,157.77,157.73,3.1689]
[1727467327102,15.21,157.82,157.73,15.21]
[1727467328196,3.168,157.79,157.76,3.1684]
[1727467330302,15.21,157.8,157.69,15.21]
[1727467331598,1.378,157.84,157.71,15.21]
[1727467331804,15.21,157.8,157.71,15.21]
[1727467332391,3.1682,157.78,157.75,3.1687]
[1727467335003,3.168,157.79,157.76,3.1685]
[1727467335999,1.378,157.84,157.75,15.21]
[1727467336204,1.378,157.84,157.77,15.21]
[1727467336403,2.6565,157.86,157.77,15.21]
[1727467337409,3.1669,157.85,157.81,3.1674]
[1727467337597,2.6565,157.86,157.81,3.1674]
[1727467338709,3.1669,157.84,157.81,3.1674]
[1727467338900,2.6565,157.86,157.8,3.1677]
[1727467339101,2.6565,157.86,157.74,27.45140743]
[1727467339701,3.167,157.84,157.74,27.45140743]
[1727467340103,3.167,157.84,157.8,3.1676]
[1727467340303,3.1668,157.85,157.74,27.45140743]
[1727467340702,2.6565,157.86,157.81,3.1674]
[1727467341103,2.6565,157.86,157.79,3.1678]
[1727467341499,1.27,157.85,157.79,3.1678]
[1727467342215,1.27,157.85,157.78,3.168]
[1727467342415,25.6,157.85,157.78,3.168]
[1727467342604,25.6,157.85,157.73,1.3142]
[1727467343405,25.6,157.85,157.76,3.1684]
[1727467343616,24.33,157.83,157.76,3.1684]
[1727467344015,3.1681,157.79,157.76,3.1684]
[1727467344624,25.6,157.85,157.73,1.3142]
[1727467345117,25.6,157.85,157.74,24.33]
[1727467346308,3.1676,157.81,157.78,3.168]
[1727467349328,3.167,157.84,157.81,3.1674]
[1727467349527,1.27,157.85,157.74,24.33]
[1727467350227,3.1672,157.83,157.79,3.1677]
[1727467350928,3.1672,157.83,157.8,3.1677]
[1727467353030,3.1673,157.82,157.79,3.1678]
[1727467357031,24.33,157.91,157.77,24.33]
[1727467357225,10.74569818,157.9,157.77,24.33]
[1727467357429,3.1669,157.85,157.77,27.43290408]
[1727467358029,3.167,157.84,157.81,3.1674]
[1727467358234,24.33,157.88,157.77,27.43290408]
[1727467359639,3.1671,157.84,157.8,3.1675]
[1727467359840,24.33,157.86,157.73,1.3142]
[1727467360028,3.9433,157.85,157.73,25.6442]
[1727467360339,3.1674,157.82,157.79,3.1678]
[1727467363339,3.1676,157.81,157.78,3.1681]
[1727467364034,3.1674,157.82,157.79,3.1679]
[1727467366739,3.1676,157.81,157.78,3.1681]
[1727467367935,3.9433,157.85,157.73,1.3142]
[1727467368134,15.21,157.81,157.73,1.3142]
[1727467368846,3.1683,157.78,157.73,1.3142]
[1727467369045,15.21,157.81,157.72,15.21]
[1727467369243,15.21,157.79,157.7,15.21]
[1727467370947,3.1687,157.76,157.7,15.21]
[1727467371244,15.21,157.79,157.7,15.21]
[1727467371448,3.1686,157.76,157.73,3.1691]
[1727467372048,15.21,157.79,157.7,15.21]
[1727467372351,3.1684,157.77,157.7,15.21]
[1727467373250,3.1682,157.78,157.7,15.21]
[1727467373451,3.1682,157.78,157.72,15.21]
[1727467373942,3.1682,157.78,157.75,3.1687]
[1727467377548,3.1684,157.77,157.74,3.1689]
[1727467382257,15.21,157.83,157.74,15.21]
[1727467382958,3.1679,157.8,157.74,15.21]
[1727467383752,3.168,157.79,157.76,3.1684]
[1727467384959,15.21,157.81,157.72,15.21]
[1727467385461,15.21,157.79,157.7,15.21]
[1727467385852,15.21,157.81,157.72,15.21]
[1727467386455,3.1683,157.77,157.74,3.1688]
[1727467386850,3.1683,157.77,157.72,15.21]
[1727467387857,3.1683,157.77,157.74,3.1688]
[1727467391868,3.1682,157.78,157.72,15.21]
[1727467392069,15.21,157.81,157.72,15.21]
[1727467392968,3.168,157.79,157.76,3.1684]
[1727467394468,3.168,157.79,157.77,3.1683]
[1727467394868,19.1533,157.85,157.75,15.21]
[1727467395362,3.9433,157.85,157.79,15.21]
[1727467395566,2.5953,157.85,157.79,15.21]
[1727467396876,3.1669,157.84,157.81,3.1674]
[1727467397666,3.1668,157.85,157.82,3.1673]
[1727467397967,1.2852,157.9,157.76,3.20734825]
[1727467397968,2.5539,157.9,157.81,15.21]
[1727467398263,2.5539,157.9,157.84,3.1668]
[1727467398264,3.1663,157.87,157.84,3.1668]
[1727467398470,2.5539,157.9,157.81,15.21]
[1727467398471,13.30276148,157.9,157.81,15.21]
[1727467399072,2.5539,157.9,157.81,15.21]
[1727467399265,3.1663,157.88,157.84,3.1668]
[1727467402280,3.1664,157.87,157.84,3.1668]
[1727467402573,2.5539,157.9,157.84,3.1668]
[1727467402979,3.1662,157.88,157.84,3.1668]
[1727467405879,3.1663,157.87,157.84,3.1668]
[1727467407575,3.1662,157.88,157.84,3.1668]
[1727467408576,3.166,157.89,157.86,3.1665]
[1727467409381,5.7197,157.9,157.87,3.1663]
[1727467409582,4.4345,157.9,157.87,3.1663]
[1727467409785,4.4345,157.9,157.84,15.21]
[1727467410376,4.4345,157.9,157.86,3.1663]
[1727467410571,3.166,157.89,157.86,3.1663]
[1727467411381,16.4616,157.94,157.81,1.311]
[1727467411382,6.3271,158.01,157.88,15.21]
[1727467411578,6.3271,158.01,157.82,6.3344]
[1727467411579,14.66943926,157.98,157.9,15.21]
[1727467411784,14.66943926,157.98,157.93,3.165]
[1727467411785,17.75900437,157.98,157.93,3.165]
[1727467411978,17.75900437,157.98,157.9,15.21]
[1727467412368,17.75900437,157.98,157.92,3.1652]
[1727467413378,7.02306511,157.98,157.92,3.1652]
[1727467413789,7.02306511,157.98,157.9,15.21]
[1727467414481,3.1646,157.96,157.93,3.1651]
[1727467414875,3.1647,157.95,157.92,3.1652]
[1727467415681,3.1644,157.97,157.94,3.1649]
[1727467416879,3.1642,157.98,157.95,3.1646]
[1727467417081,3.14974681,158.02,157.94,15.21]
[1727467417283,13.93272051,158.03,157.96,15.21]
[1727467417592,3.1637,158.01,157.98,3.1641]
[1727467418487,3.1637,158.0,157.98,3.1641]
[1727467419083,3.1637,158.0,157.97,3.1642]
[1727467420185,15.21,158.02,157.88,3.9874]
[1727467420482,15.21,158.02,157.92,15.21]
[1727467420679,3.1643,157.97,157.94,3.1648]
[1727467421078,15.21,158.0,157.92,15.21]
[1727467421894,3.1646,157.96,157.93,3.1651]
[1727467422091,3.12773858,157.99,157.92,15.21]
[1727467422293,16.513,157.98,157.9,15.21]
[1727467422490,3.1649,157.95,157.92,3.1653]
[1727467423087,3.165,157.94,157.91,3.1654]
[1727467423587,3.165,157.94,157.9,18.3756]
[1727467423782,15.21,157.96,157.88,15.21]
[1727467424489,15.21,157.96,157.89,3.1658]
[1727467424685,15.21,157.96,157.88,15.21]
[1727467426796,3.1654,157.92,157.89,3.1659]
[1727467430602,3.1652,157.93,157.9,3.1657]
[1727467432106,3.165,157.94,157.91,3.1655]
[1727467434504,3.1649,157.95,157.88,15.21]
[1727467434706,1.3247,157.97,157.88,15.21]
[1727467435007,3.1649,157.95,157.91,3.1654]
[1727467435612,3.165,157.94,157.91,3.1654]
[1727467436406,3.165,157.94,157.91,12.8954]
[1727467438106,9.73,157.94,157.9,3.1656]
[1727467438306,1.3247,157.97,157.89,9.73]
[1727467438609,3.1657,157.9,157.89,9.73]
[1727467439215,9.73,157.92,157.87,9.73]
[1727467439907,9.73,157.92,157.87,12.8962]
[1727467439908,3.1658,157.9,157.87,12.8962]
[1727467440305,9.73,157.89,157.86,9.73]
[1727467440518,9.73,157.89,157.81,75.47283482]
[1727467440818,12.896,157.89,157.86,3.1664]
[1727467441003,3.166,157.89,157.86,12.8964]
[1727467442411,3.166,157.89,157.86,3.1664]
[1727467443205,3.1658,157.9,157.87,3.1663]
[1727467443517,15.2,157.95,157.86,15.2]
[1727467443813,3.1657,157.9,157.86,15.2]
[1727467444409,3.1657,157.9,157.87,3.1661]
[1727467445218,3.1657,157.9,157.86,15.2]
[1727467445219,18.29558457,157.91,157.82,15.2]
[1727467445405,1.2726,157.9,157.82,15.2]
[1727467445808,3.1664,157.87,157.84,3.1669]
[1727467446314,3.1663,157.88,157.85,3.1666]
[1727467446612,1.2726,157.9,157.82,15.2]
[1727467447521,3.1661,157.89,157.82,15.2]
[1727467448914,3.1661,157.89,157.85,3.1666]
[1727467450622,3.1661,157.89,157.86,3.1665]
[1727467451724,3.1661,157.88,157.85,3.1666]
[1727467452315,1.2726,157.9,157.84,3.1668]
[1727467452508,15.2,157.87,157.79,15.2]
[1727467453028,3.1666,157.86,157.83,3.167]
[1727467453711,16.5006,157.89,157.82,3.1671]
[1727467454323,3.1668,157.85,157.82,3.1671]
[1727467459723,3.1666,157.86,157.83,3.1671]
[1727467459924,16.5006,157.89,157.79,15.2]
[1727467461025,3.1667,157.85,157.82,3.1672]
[1727467462332,15.2,157.87,157.77,19.1623]
[1727467463124,3.1671,157.84,157.81,3.1675]
[1727467464416,3.1671,157.84,157.81,12.8975]
[1727467465236,1.3006,157.89,157.82,9.73]
[1727467465430,9.73,157.87,157.82,9.73]
[1727467465924,9.73,157.86,157.82,9.73]
[1727467466123,9.73,157.86,157.81,9.73]
[1727467466322,9.73,157.86,157.77,3.9623]
[1727467466524,3.167,157.84,157.81,3.1675]
[1727467467327,1.3006,157.89,157.77,3.9623]
[1727467467328,9.73,157.83,157.77,1.2751]
[1727467467530,9.73,157.8,157.75,9.73]
[1727467467926,3.168,157.79,157.76,3.1684]
[1727467468829,12.8978,157.8,157.77,3.1683]
[1727467469027,3.1678,157.8,157.77,3.1683]
[1727467469217,9.73,157.81,157.76,9.73]
[1727467469424,3.1676,157.81,157.78,3.1681]
[1727467469924,4.4164,157.82,157.79,12.8979]
[1727467470121,3.1673,157.82,157.79,12.8979]
[1727467470529,3.1673,157.82,157.8,12.8977]
[1727467470823,3.1673,157.82,157.8,9.73]
[1727467471229,3.1676,157.81,157.78,9.73]
[1727467471826,3.1676,157.81,157.78,12.898]
[1727467472225,9.73,157.8,157.75,3.1687]
[1727467472529,1.3479,157.86,157.71,2.7584]
[1727467472530,9.73,157.76,157.71,9.73]
[1727467473024,12.8986,157.76,157.73,3.169]